bitfinex/quotes_ETHUSD_20241123
["timestamp","ask_amount","ask_price","bid_price","bid_amount"]
[1732333675809,0.27903793,3325.4,3324.7,0.8189]
[1732333676005,0.27903793,3325.3,3324.7,0.8189]
[1732333676326,0.8008106,3325.6,3324.7,0.8189]
[1732333676327,0.27903793,3325.2,3324.8,0.01]
[1732333676655,0.27903793,3325.1,3324.8,0.01]
[1732333676794,0.27903793,3325.5,3324.8,0.01]
[1732333676990,0.27903793,3325.4,3324.8,0.01]
[1732333677233,0.27903793,3325.3,3324.8,0.01]
[1732333677395,0.27903793,3325.2,3324.8,0.01]
[1732333677598,0.27903793,3325.1,3324.8,0.01]
[1732333677798,0.27903793,3325.0,3324.8,0.01]
[1732333677998,0.27903793,3324.9,3324.8,0.01]
[1732333678632,0.27903793,3325.5,3324.8,0.01]
[1732333678804,0.27903793,3325.4,3324.8,0.01]
[1732333679016,0.27903793,3325.3,3324.8,0.01]
[1732333679334,0.27903793,3325.2,3324.8,0.01]
[1732333679533,0.27903793,3325.1,3324.8,0.01]
[1732333679845,0.27903793,3325.0,3324.7,0.8189]
[1732333680000,0.27903793,3324.9,3324.8,0.01]
[1732333680201,0.27903793,3325.5,3324.8,0.01]
[1732333680412,0.30154853,3325.4,3324.8,0.01]
[1732333680612,0.27903793,3325.3,3325.2,0.01]
[1732333680813,0.7672,3325.9,3325.2,0.01]
[1732333681119,0.27903793,3325.8,3325.2,0.8137]
[1732333681299,0.27903793,3325.7,3325.2,0.8137]
[1732333681634,0.27903793,3325.6,3325.3,0.06468888]
[1732333681808,0.27903793,3325.5,3325.2,0.8137]
[1732333682016,0.27903793,3325.4,3325.3,0.06468888]
[1732333682199,0.27903793,3325.4,3325.3,0.87838888]
[1732333682837,0.0304,3325.5,3325.3,0.87838888]
[1732333686540,0.0304,3325.5,3325.4,0.01]
[1732333686744,0.0304,3325.5,3325.4,0.07468342]
[1732333686906,0.0304,3325.5,3325.4,0.87838342]
[1732333687345,0.0304,3325.5,3325.4,0.90844729]
[1732333689547,0.0304,3325.5,3325.4,0.87838342]
[1732333690603,0.0304,3325.5,3325.4,0.86838342]
[1732333691215,0.0304,3325.5,3325.4,0.06468342]
[1732333691914,0.0304,3325.5,3325.0,0.8237]
[1732333692229,0.27945532,3325.4,3325.0,0.8237]
[1732333692431,0.27945532,3325.4,3325.1,0.0644095]
[1732333692612,0.27945532,3325.4,3325.3,0.01]
[1732333692816,0.27945532,3325.4,3325.0,0.02]
[1732333693333,0.27945532,3325.4,3325.1,0.06441132]
[1732333693548,0.27945532,3325.4,3325.0,0.02]
[1732333693712,0.27945532,3325.4,3325.3,0.01]
[1732333694502,0.27945532,3325.4,3325.3,0.0744004]
[1732333695156,0.27945532,3325.4,3325.3,0.87286971]
[1732333695440,0.0304,3325.5,3325.3,0.8428004]
[1732333696243,0.0304,3325.5,3325.4,0.01]
[1732333696605,0.0304,3325.5,3325.4,0.10446114]
[1732333696945,0.0304,3325.5,3325.4,0.07439494]
[1732333697441,0.0304,3325.5,3325.4,0.40366113]
[1732333697746,0.0304,3325.5,3325.4,0.87286113]
[1732333697907,0.0304,3325.5,3325.4,1.17206113]
[1732333699633,0.0304,3325.5,3325.4,0.87286113]
[1732333699839,0.0304,3325.5,3325.4,0.84279494]
[1732333707470,0.0304,3325.5,3325.4,1.14199494]
[1732333708858,0.0304,3325.5,3325.4,0.84279494]
[1732333709041,0.31032318,3325.5,3325.4,0.84279494]
[1732333709378,0.31032318,3325.5,3325.4,0.07439494]
[1732333709979,0.3104981,3325.5,3325.4,0.07439494]
[1732333710285,0.3104981,3325.5,3325.4,0.82739494]
[1732333713675,0.31055384,3325.5,3325.4,0.82739494]
[1732333716915,0.0304,3325.5,3325.4,0.85746037]
[1732333717502,0.0304,3325.5,3325.4,1.15666037]
[1732333717908,0.0304,3325.5,3325.4,0.85746037]
[1732333718573,0.31053945,3325.5,3325.4,0.85746037]
[1732333720111,0.31056687,3325.5,3325.4,0.85746037]
[1732333720297,0.0304,3325.5,3325.4,0.85746037]
[1732333720500,0.31056108,3325.5,3325.4,0.85746037]
[1732333720675,0.31056108,3325.5,3325.4,0.82739494]
[1732333724571,0.31091805,3325.5,3325.4,0.82739494]
[1732333727072,0.31091805,3325.5,3325.4,1.37739494]
[1732333727278,0.8128,3326.6,3326.4,0.01]
[1732333727783,0.8128,3326.6,3326.5,0.06432751]
[1732333728982,0.8424,3326.6,3326.5,0.06432751]
[1732333730221,0.0296,3326.6,3326.5,0.06432751]
[1732333731021,0.8424,3326.6,3326.5,0.07432751]
[1732333731525,0.8424,3326.6,3326.5,0.01]
[1732333732182,0.0296,3326.6,3326.5,0.01]
[1732333732382,0.0296,3326.6,3326.5,0.07425996]
[1732333733398,0.0296,3326.6,3326.5,0.06425996]
[1732333733399,0.8424,3326.6,3326.5,0.06425996]
[1732333733593,0.8424,3326.6,3326.0,0.01]
[1732333733820,0.8424,3326.6,3326.1,0.06428178]
[1732333733988,0.8424,3326.6,3326.1,0.07428178]
[1732333736685,0.8138,3326.4,3326.1,0.07428178]
[1732333736912,0.8434,3326.4,3326.1,0.07428178]
[1732333738126,0.8434,3326.4,3326.1,0.06428178]
[1732333738485,0.8434,3326.4,3326.1,0.07428178]
[1732333738690,0.8434,3326.4,3326.1,0.06428178]
[1732333739092,0.8434,3326.4,3326.0,0.01]
[1732333739401,0.8434,3326.4,3326.1,0.06434677]
[1732333740290,0.0225106,3326.3,3326.1,0.06434677]
[1732333740490,0.8138,3326.3,3326.1,0.06434677]
[1732333741027,0.8138,3326.3,3326.0,0.01]
[1732333741391,0.0225106,3326.2,3326.0,0.01]
[1732333741587,0.0225106,3326.2,3325.3,0.7876]
[1732333741588,0.8659106,3326.2,3326.1,0.06434677]
[1732333741794,0.8659106,3326.2,3325.2,0.01]
[1732333741989,0.8659106,3326.2,3325.3,0.06439044]
[1732333742509,0.8659106,3326.2,3325.3,0.07439044]
[1732333743344,0.8659106,3326.2,3325.3,0.01]
[1732333743633,0.8659106,3326.2,3325.1,0.01]
[1732333744142,0.8659106,3326.2,3325.0,0.01]
[1732333744299,0.8659106,3326.2,3325.1,0.01]
[1732333745639,0.8138,3326.0,3325.1,0.01]
[1732333745845,0.8138,3325.9,3325.1,0.01]
[1732333745998,0.8363106,3325.9,3325.1,0.01]
[1732333746198,0.8363106,3325.9,3325.2,0.06453687]
[1732333747697,0.8363106,3325.9,3325.1,0.01]
[1732333751328,0.8363106,3325.9,3325.0,0.01]
[1732333751533,0.8363106,3325.9,3325.1,0.01]
[1732333752628,0.8363106,3325.9,3325.0,0.01]
[1732333752834,0.8363106,3325.9,3325.1,0.01]
[1732333752835,0.8138,3325.9,3325.1,0.01]
[1732333753374,0.8138,3325.9,3325.2,0.06467024]
[1732333753748,0.8138,3325.9,3325.1,0.01]
[1732333754152,0.8138,3325.9,3325.2,0.06468232]
[1732333754982,0.8138,3325.9,3325.0,0.01]
[1732333755267,0.0521106,3326.0,3325.1,0.06468778]
[1732333755268,0.8363106,3325.8,3325.1,0.06468778]
[1732333755467,0.8659106,3325.8,3325.1,0.07468778]
[1732333756474,0.0225106,3325.7,3325.1,0.07468778]
[1732333756637,0.0296,3325.8,3325.1,0.07468778]
[1732333756638,0.7967,3325.6,3325.1,0.07468778]
[1732333756833,0.8263,3325.6,3325.1,0.07468778]
[1732333758377,0.8263,3325.6,3325.1,0.06468778]
[1732333758679,0.8263,3325.6,3325.1,0.01]
[1732333758873,0.8263,3325.6,3325.2,0.06469252]
[1732333759337,0.0225106,3325.5,3325.2,0.06469252]
[1732333760741,0.8263,3325.6,3325.2,0.06469252]
[1732333761640,0.8263,3325.6,3325.1,0.01]
[1732333761886,0.0225106,3325.5,3325.3,0.06468706]
[1732333762044,0.0225106,3325.5,3325.2,0.06469252]
[1732333762249,0.8192106,3325.5,3325.4,0.0646816]
[1732333762437,0.8192106,3325.5,3325.3,0.06468706]
[1732333762646,0.8192106,3325.5,3324.6,0.01]
[1732333763176,0.8192106,3325.5,3324.7,0.06474224]
[1732333763537,0.8192106,3325.5,3324.4,0.01]
[1732333763739,0.8192106,3325.5,3324.5,0.06478761]
[1732333764760,0.55,3325.4,3324.5,0.06478761]
[1732333764952,0.55,3325.4,3324.0,0.02]
[1732333764953,0.8192106,3325.3,3324.0,0.02]
[1732333767160,0.8192106,3325.3,3324.1,0.06483499]
[1732333767846,0.8192106,3325.3,3324.4,0.01]
[1732333768171,0.8192106,3325.3,3324.6,0.01]
[1732333768492,0.8192106,3325.3,3324.7,0.0648022]
[1732333768493,0.7967,3325.3,3324.7,0.0648022]
[1732333769422,0.7967,3325.3,3324.8,0.01]
[1732333769586,0.7967,3325.3,3324.9,0.06479128]
[1732333773955,0.0296,3325.4,3325.2,0.01]
[1732333774157,0.0296,3325.4,3325.3,0.06478726]
[1732333774354,0.0296,3325.4,3325.2,0.01]
[1732333774557,0.0296,3325.4,3325.3,0.06478726]
[1732333774801,0.0296,3325.4,3325.2,0.01]
[1732333774960,0.0296,3325.4,3325.3,0.06478726]
[1732333775300,0.0296,3325.4,3325.2,0.01]
[1732333775456,0.0296,3325.4,3325.3,0.06478726]
[1732333775861,0.0296,3325.4,3325.2,0.01]
[1732333776095,0.0296,3325.4,3325.3,0.06478726]
[1732333776304,0.0296,3325.4,3325.3,0.07478726]
[1732333784519,0.0296,3325.4,3325.3,0.83248726]
[1732333788432,0.821,3326.5,3326.3,0.01]
[1732333788748,0.0225106,3327.9,3326.4,0.06442075]
[1732333788749,0.821,3327.8,3326.4,0.06442075]
[1732333788943,0.821,3327.6,3326.4,0.06442075]
[1732333789106,0.821,3327.4,3326.6,0.01]
[1732333789307,0.821,3327.2,3326.6,0.01]
[1732333789513,0.821,3327.0,3326.6,0.01]
[1732333790853,0.85111367,3327.0,3326.6,0.01]
[1732333791011,0.0225106,3326.9,3326.2,0.01]
[1732333791219,0.821,3326.8,3326.3,0.06442494]
[1732333791414,0.0225106,3326.7,3326.3,0.06442494]
[1732333792152,0.0225106,3326.7,3326.3,0.07442494]
[1732333792352,0.85111367,3326.8,3326.3,0.07442494]
[1732333793956,0.0225106,3326.7,3326.3,0.07442494]
[1732333795922,0.85111367,3326.8,3326.3,0.07442494]
[1732333796121,0.0225106,3326.7,3326.3,0.07442494]
[1732333796626,0.85111367,3326.8,3326.3,0.07442494]
[1732333796852,0.0225106,3326.7,3326.3,0.07442494]
[1732333797359,0.85111367,3326.8,3326.3,0.07442494]
[1732333797655,0.85111367,3326.8,3326.5,0.01]
[1732333797859,0.85111367,3326.8,3326.6,0.06428363]
[1732333799420,0.03011367,3326.8,3326.7,0.02]
[1732333799641,0.03011367,3326.8,3326.7,0.08425593]
[1732333800245,0.03011367,3326.8,3326.7,0.87625593]
[1732333801557,0.03011367,3326.8,3326.7,0.07425593]
[1732333801744,0.03011367,3326.8,3326.7,0.08425593]
[1732333802939,0.03011367,3326.8,3326.7,0.07425593]
[1732333805171,0.03011367,3326.8,3326.7,0.08425593]
[1732333808166,0.03011367,3326.8,3326.7,0.86545593]
[1732333813179,0.03011367,3326.8,3326.7,1.08433248]
[1732333813332,0.75845336,3328.9,3327.5,0.01]
[1732333813535,0.7575,3328.7,3327.5,0.01]
[1732333813861,0.7575,3328.5,3327.6,0.01]
[1732333814046,0.7575,3328.5,3327.7,0.06406175]
[1732333814231,0.7575,3328.5,3327.9,0.01]
[1732333814434,0.7575,3328.5,3327.9,0.7912]
[1732333814632,0.7575,3328.5,3328.0,0.06399189]
[1732333815069,0.7575,3328.5,3328.2,0.01]
[1732333815276,0.7575,3328.5,3328.3,0.06393224]
[1732333815629,0.7575,3328.5,3328.2,0.01]
[1732333815830,0.7575,3328.5,3328.3,0.06393224]
[1732333816075,0.7575,3328.5,3327.8,0.01]
[1732333816282,0.7635,3328.3,3327.9,0.06395405]
[1732333816437,0.7635,3328.1,3327.9,0.06395405]
[1732333816770,0.7635,3328.1,3327.3,0.01]
[1732333816988,0.7635,3328.1,3328.0,0.06395769]
[1732333817183,0.7635,3328.1,3327.7,0.01]
[1732333817477,0.7635,3328.1,3327.8,0.0638043]
[1732333817631,0.7635,3328.1,3327.7,0.01]
[1732333817834,0.7635,3328.1,3327.8,0.0638043]
[1732333818085,0.7635,3328.1,3327.5,0.01]
[1732333818600,0.7635,3328.1,3327.6,0.06381521]
[1732333819297,0.7635,3328.1,3327.7,0.01]
[1732333819592,0.79361367,3328.1,3327.8,0.0638043]
[1732333819900,0.79361367,3328.1,3327.7,0.01]
[1732333820254,0.79361367,3328.1,3327.8,0.0638043]
[1732333820497,0.79361367,3328.1,3327.7,0.01]
[1732333820859,0.79361367,3328.1,3327.8,0.0638043]
[1732333821055,0.03011367,3328.1,3327.7,0.02]
[1732333821252,0.03011367,3328.1,3327.8,0.0638043]
[1732333821452,0.03011367,3328.1,3327.7,0.02]
[1732333821793,0.03011367,3328.1,3327.8,0.0638043]
[1732333822049,0.03011367,3328.1,3327.7,0.02]
[1732333822202,0.03011367,3328.1,3327.8,0.0638043]
[1732333822401,0.03011367,3328.1,3327.7,0.02]
[1732333822896,0.03011367,3328.1,3327.8,0.0638043]
[1732333823395,0.03011367,3328.1,3327.7,0.02]
[1732333823559,0.03011367,3328.1,3327.8,0.0638043]
[1732333823760,0.03011367,3328.1,3327.7,0.02]
[1732333824066,0.793,3328.0,3327.8,0.0638043]
[1732333824368,0.793,3328.0,3327.5,0.01]
[1732333824369,0.793,3328.0,3327.5,0.02]
[1732333824876,0.793,3328.0,3327.6,0.06381521]
[1732333828006,0.0225106,3327.9,3327.6,0.06381521]
[1732333828190,0.793,3327.8,3327.0,0.01]
[1732333828532,0.793,3327.6,3327.1,0.06391403]
[1732333828823,0.793,3327.4,3326.4,0.01]
[1732333829025,0.793,3327.2,3326.5,0.064013]
[1732333829229,0.0225106,3327.1,3326.7,0.01]
[1732333829560,0.05262427,3327.1,3326.8,0.06399663]
[1732333829915,0.05262427,3327.1,3326.7,0.02]
[1732333830102,0.05262427,3327.1,3326.9,0.0640822]
[1732333830291,0.05262427,3327.1,3326.7,0.02]
[1732333830493,0.03011367,3327.1,3326.7,0.02]
[1732333831230,0.05262427,3327.1,3326.7,0.02]
[1732333831435,0.03011367,3327.1,3326.7,0.02]
[1732333831738,0.05262427,3327.1,3326.7,0.01]
[1732333831935,0.05262427,3327.1,3326.7,0.02]
[1732333832137,0.05262427,3327.1,3326.7,0.01]
[1732333832590,0.05262427,3327.1,3326.7,0.02]
[1732333833703,0.03011367,3327.1,3326.7,0.02]
[1732333835248,0.03011367,3327.1,3326.9,0.01]
[1732333835545,0.03011367,3327.1,3327.0,0.06407355]
[1732333835908,0.03011367,3327.1,3326.9,0.01]
[1732333836240,0.03011367,3327.1,3327.0,0.06407355]
[1732333836403,0.03011367,3327.1,3326.9,0.01]
[1732333836610,0.03011367,3327.1,3327.0,0.06407355]
[1732333836943,0.03011367,3327.1,3326.7,0.01]
[1732333837145,0.85091367,3327.1,3327.0,0.06407355]
[1732333837316,0.85091367,3327.1,3326.5,0.01]
[1732333837820,0.85091367,3327.1,3326.7,0.01]
[1732333838018,0.85091367,3327.1,3326.8,0.06407299]
[1732333838202,0.85091367,3327.1,3326.5,0.01]
[1732333838543,0.85091367,3327.1,3326.6,0.0640839]
[1732333838707,0.8208,3326.9,3326.6,0.0640839]
[1732333838907,0.0225106,3326.8,3326.1,0.02]
[1732333839139,0.0225106,3326.8,3326.7,0.06420078]
[1732333839450,0.03011367,3326.8,3326.7,0.06421862]
[1732333839652,0.03011367,3326.8,3326.3,0.01]
[1732333839653,0.03011367,3326.8,3326.5,0.01]
[1732333839807,0.05262427,3326.8,3326.5,0.01]
[1732333840004,0.03011367,3326.8,3326.5,0.01]
[1732333840211,0.05262427,3326.8,3326.5,0.01]
[1732333840932,0.03011367,3326.8,3326.5,0.01]
[1732333841135,0.03011367,3326.8,3326.6,0.01]
[1732333841444,0.05262427,3326.8,3326.6,0.01]
[1732333841747,0.03011367,3326.8,3326.6,0.01]
[1732333843421,0.05262427,3326.8,3326.6,0.01]
[1732333844024,0.05262427,3326.8,3326.0,0.7807]
[1732333844239,0.8136,3326.7,3325.9,0.02]
[1732333844590,0.0225106,3326.6,3326.0,0.0642581]
[1732333844938,0.03011367,3326.6,3326.3,0.01]
[1732333845259,0.03011367,3326.6,3326.4,0.06423627]
[1732333845462,0.03011367,3326.6,3326.3,0.01]
[1732333845748,0.03011367,3326.6,3326.4,0.07426558]
[1732333846058,0.03011367,3326.6,3326.4,0.01]
[1732333846912,0.03011367,3326.6,3326.5,0.06426013]
[1732333847108,0.03011367,3326.6,3326.5,0.07426013]
[1732333857064,0.03011367,3326.6,3326.5,1.20351921]
[1732333858949,0.03011367,3326.6,3326.5,1.17346013]
[1732333864988,0.03011367,3326.6,3326.5,1.20351666]
[1732333865379,0.8113,3327.6,3327.4,8.82988633]
[1732333865563,0.8113,3328.8,3327.4,0.01]
[1732333865759,0.8113,3328.6,3327.6,0.01]
[1732333865998,0.8113,3328.4,3327.7,0.01]
[1732333866506,0.8113,3328.4,3327.8,0.06405654]
[1732333866676,0.8113,3328.4,3327.8,0.07405654]
[1732333867000,0.8113,3328.4,3328.0,0.01]
[1732333867199,0.84141367,3328.4,3328.0,0.01]
[1732333867367,0.84141367,3328.4,3328.1,0.06404019]
[1732333871188,0.03011367,3328.4,3328.1,0.06404019]
[1732333871395,0.03011367,3328.4,3328.2,0.01]
[1732333871564,0.03011367,3328.4,3328.2,0.02]
[1732333871766,0.03011367,3328.4,3328.3,0.06393758]
[1732333872065,0.03011367,3328.4,3328.2,0.02]
[1732333872494,0.03011367,3328.4,3328.3,0.06381146]
[1732333873213,0.03011367,3328.4,3328.2,0.02]
[1732333873406,0.03011367,3328.4,3328.3,0.06381146]
[1732333873702,0.03011367,3328.4,3328.2,0.02]
[1732333874005,0.03011367,3328.4,3328.3,0.06381146]
[1732333874362,0.03011367,3328.4,3328.2,0.02]
[1732333874559,0.03011367,3328.4,3328.3,0.06381146]
[1732333875015,0.03011367,3328.4,3328.2,0.02]
[1732333875314,0.03011367,3328.4,3328.3,0.06381146]
[1732333875463,0.03011367,3328.4,3328.2,0.02]
[1732333875663,0.03011367,3328.4,3328.3,0.06372489]
[1732333875882,0.03011367,3328.4,3328.3,0.01]
[1732333876103,0.03011367,3328.4,3328.3,0.06372489]
[1732333876303,0.03011367,3328.4,3328.2,0.01]
[1732333876515,0.8131,3328.3,3327.9,0.01]
[1732333876873,0.03011367,3328.4,3328.1,0.02]
[1732333877067,0.03011367,3328.4,3328.3,0.01]
[1732333877377,0.03011367,3328.4,3328.3,0.07375162]
[1732333877581,0.03011367,3328.4,3328.3,0.01]
[1732333877778,0.03011367,3328.4,3328.3,0.07375289]
[1732333877973,0.03011367,3328.4,3328.3,0.01]
[1732333878179,0.03011367,3328.4,3328.3,0.88555289]
[1732333878364,0.03011367,3328.4,3328.3,0.8218]
[1732333878567,0.03011367,3328.4,3328.3,0.88555289]
[1732333879073,0.03011367,3328.4,3328.3,0.89555289]
[1732333879303,0.03011367,3328.4,3328.3,0.08375289]
[1732333881815,0.03011367,3328.4,3328.3,0.07375289]
[1732333882010,0.03011367,3328.4,3328.3,0.06375289]
[1732333882395,0.03011367,3328.4,3328.0,2.75416216]
[1732333882570,0.03011367,3328.4,3328.3,0.07374016]
[1732333882766,0.03011367,3328.4,3328.3,0.01]
[1732333883216,0.03011367,3328.4,3328.3,0.07374016]
[1732333883416,0.03011367,3328.4,3328.3,0.01]
[1732333883576,0.03011367,3328.4,3328.3,0.07374016]
[1732333883773,0.03011367,3328.4,3328.3,0.01]
[1732333884483,0.03011367,3328.4,3328.3,0.07374016]
[1732333887816,0.79321367,3329.0,3328.6,0.01]
[1732333888123,0.79321367,3329.0,3328.7,0.06362909]
[1732333890316,0.82332734,3329.0,3328.7,0.06362909]
[1732333890612,0.0225106,3328.9,3328.4,0.01]
[1732333890774,0.8131,3328.9,3328.8,0.0636351]
[1732333890971,0.8131,3328.9,3328.4,0.01]
[1732333891278,0.0225106,3328.8,3328.5,0.06365145]
[1732333891480,0.05262427,3328.8,3328.5,0.06365145]
[1732333893280,0.05262427,3328.8,3328.4,0.01]
[1732333893629,0.05262427,3328.8,3328.5,0.06367182]
[1732333893915,0.03011367,3328.8,3328.5,0.06367182]
[1732333895278,0.05262427,3328.8,3328.5,0.06367182]
[1732333895697,0.03011367,3328.8,3328.5,0.06367182]
[1732333895884,0.05262427,3328.8,3328.5,0.06367182]
[1732333896794,0.03011367,3328.8,3328.5,0.06367182]
[1732333897729,0.05262427,3328.8,3328.5,0.06367182]
[1732333898694,0.03011367,3328.8,3328.5,0.06367182]
[1732333899116,0.05262427,3328.8,3328.5,0.06367182]
[1732333899416,0.03011367,3328.8,3328.5,0.06367182]
[1732333901130,0.05262427,3328.8,3328.5,0.06367182]
[1732333908414,0.03011367,3328.8,3328.5,0.06367182]
[1732333908618,0.05262427,3328.8,3328.5,0.06367182]
[1732333909312,0.03011367,3328.8,3328.5,0.06367182]
[1732333912805,0.05262427,3328.8,3328.5,0.06367182]
[1732333913209,0.03011367,3328.8,3328.5,0.06367182]
[1732333917835,0.03011367,3328.8,3328.5,0.07367182]
[1732333918155,0.03011367,3328.8,3328.7,1.30429496]
[1732333918818,0.03011367,3328.8,3328.7,1.36763084]
[1732333920735,0.03011367,3328.8,3328.7,0.06333588]
[1732333920957,0.03011367,3328.8,3328.4,0.02]
[1732333921162,0.03011367,3328.8,3328.5,0.06329716]
[1732333925282,0.03011367,3328.8,3328.6,0.01]
[1732333925575,0.03011367,3328.8,3328.7,0.06330247]
[1732333926336,0.03011367,3328.8,3328.7,0.27831221]
[1732333926549,0.03011367,3328.8,3328.7,0.06330247]
[1732333930376,0.03011367,3328.8,3328.7,2.15009743]
[1732333930540,0.03011367,3328.8,3328.7,2.44929743]
[1732333934283,0.8069,3330.1,3329.5,8.81988633]
[1732333934585,0.8069,3330.1,3329.6,0.06112887]
[1732333934938,0.8069,3330.1,3329.4,1.31429496]
[1732333935279,0.8069,3330.1,3329.9,0.01]
[1732333935678,0.8069,3330.1,3330.0,0.06104789]
[1732333935989,0.8069,3330.1,3329.9,0.01]
[1732333935990,0.83701367,3330.1,3329.9,0.01]
[1732333936289,0.83701367,3330.1,3330.0,0.06098179]
[1732333937071,0.83701367,3330.1,3329.9,0.01]
[1732333937237,0.03011367,3330.1,3329.9,0.01]
[1732333937448,0.03011367,3330.1,3330.0,0.06098179]
[1732333937641,0.03011367,3330.1,3330.0,1.35527675]
[1732333937990,0.03011367,3330.1,3330.0,2.18576277]
[1732333938276,0.03011367,3330.1,3330.0,3.71363701]
[1732333940909,0.03011367,3330.1,3330.0,2.41934205]
[1732333941877,0.03011367,3330.1,3330.0,3.71363701]
[1732333942883,0.8292,3331.6,3330.8,0.8237]
[1732333943092,0.8292,3331.6,3331.1,1.29429496]
[1732333943595,0.8292,3331.6,3331.2,0.06055912]
[1732333943802,0.8292,3331.6,3330.9,1.29429496]
[1732333944001,1.29429496,3332.2,3331.0,0.06057]
[1732333944002,0.8517106,3331.5,3331.0,0.06057]
[1732333945073,0.8292,3331.3,3331.0,0.06057]
[1732333945294,0.8292,3331.1,3331.0,0.06057]
[1732333945491,0.85931367,3331.1,3330.1,0.01]
[1732333945691,0.8292,3330.9,3330.3,0.01]
[1732333945893,0.0225106,3330.8,3330.2,0.06057291]
[1732333946084,0.0225106,3330.8,3330.4,0.06056202]
[1732333946280,0.0225106,3330.8,3330.2,1.29429496]
[1732333946281,0.8292,3330.7,3330.3,0.06065004]
[1732333946512,0.8517106,3330.6,3330.5,0.06063915]
[1732333946717,0.8517106,3330.6,3330.0,1.29429496]
[1732333946718,0.88182427,3330.6,3330.4,0.0606446]
[1732333946885,0.88182427,3330.6,3330.5,0.06063915]
[1732333947276,0.88182427,3330.6,3330.0,1.29429496]
[1732333947480,0.88182427,3330.6,3330.5,0.06063915]
[1732333947701,0.88182427,3330.6,3329.8,0.01]
[1732333947930,0.88182427,3330.6,3329.6,0.01]
[1732333947931,0.88182427,3330.6,3330.5,0.06063915]
[1732333948073,0.88182427,3330.6,3329.8,0.01]
[1732333948396,0.8517106,3330.5,3329.9,0.06072266]
[1732333948999,0.8517106,3330.5,3329.7,0.01]
[1732333949177,0.8517106,3330.5,3329.8,0.06072811]
[1732333952918,0.8517106,3330.5,3329.0,0.01]
[1732333953215,0.8517106,3330.5,3329.1,0.06080329]
[1732333953927,0.8517106,3330.5,3329.2,0.01]
[1732333954231,0.8517106,3330.5,3329.3,0.07077608]
[1732333954717,0.8517106,3330.5,3329.3,0.06077608]
[1732333954920,0.5725106,3330.5,3329.3,0.06077608]
[1732333955217,0.55,3330.2,3329.0,0.02]
[1732333955393,0.766,3330.0,3329.4,0.06099503]
[1732333955583,0.7885106,3329.9,3329.0,0.02]
[1732333955784,0.7885106,3329.9,3329.2,0.01]
[1732333955981,0.79611367,3329.9,3329.3,0.07100048]
[1732333959826,0.79611367,3329.9,3329.3,0.06100048]
[1732333960834,0.79611367,3329.9,3329.3,0.07100048]
[1732333965627,0.79611367,3329.9,3329.6,0.01]
[1732333965827,0.03011367,3329.9,3329.6,0.01]
[1732333965993,0.03011367,3329.9,3329.8,0.01]
[1732333966200,0.03011367,3329.9,3329.8,2.80276075]
[1732333969915,0.03011367,3329.9,3329.8,2.81276075]
[1732333970507,0.03011367,3329.9,3329.8,2.84278905]
[1732333970707,5.0,3332.7,3330.8,8.85]
[1732333970708,0.8121,3331.2,3330.8,8.85]
[1732333970911,0.8121,3331.2,3331.1,1.29224674]
[1732333971114,0.8121,3331.2,3330.9,1.35305608]
[1732333971426,0.8121,3331.2,3331.0,0.06073147]
[1732333972308,0.0225106,3331.1,3331.0,0.06073147]
[1732333972456,0.8346106,3331.1,3331.0,0.06073147]
[1732333972612,0.8121,3331.1,3330.4,2.74047262]
[1732333972816,0.0225106,3331.0,3330.5,0.06075505]
[1732333973113,0.05262427,3331.0,3330.5,0.06075505]
[1732333973312,0.8121,3330.9,3330.5,0.06075505]
[1732333973549,0.8121,3330.7,3330.5,0.06075505]
[1732333973753,0.0225106,3330.6,3330.5,0.06075505]
[1732333973970,0.0225106,3330.6,3330.1,0.01]
[1732333974119,0.0225106,3330.6,3330.5,0.0607614]
[1732333974323,0.0225106,3330.6,3330.1,0.02]
[1732333974645,0.0225106,3330.6,3330.0,2.73047262]
[1732333974646,0.8346106,3330.6,3329.4,0.8229]
[1732333974831,0.8346106,3330.6,3330.2,0.06080706]
[1732333975151,0.8346106,3330.6,3329.5,2.73047262]
[1732333975314,0.8346106,3330.6,3330.3,0.06082067]
[1732333975514,0.8346106,3330.6,3329.5,2.73047262]
[1732333975954,0.8346106,3330.6,3329.6,0.06090583]
[1732333977487,0.8346106,3330.6,3329.3,0.02]
[1732333977684,0.8346106,3330.6,3329.7,0.06095562]
[1732333977846,0.8346106,3330.6,3329.3,0.02]
[1732333978051,0.8346106,3330.6,3329.8,0.06095017]
[1732333978251,0.8346106,3330.6,3329.5,2.73047262]
[1732333978896,0.8346106,3330.6,3329.6,0.06098014]
[1732333980097,0.8346106,3330.6,3329.3,2.75047262]
[1732333980247,0.8346106,3330.6,3329.7,0.06093227]
[1732333980452,0.8346106,3330.6,3329.3,2.75047262]
[1732333980677,0.8346106,3330.6,3329.8,0.06092498]
[1732333980865,0.8346106,3330.6,3329.3,2.75047262]
[1732333981194,0.8346106,3330.6,3329.9,0.06091043]
[1732333981353,0.8346106,3330.6,3329.3,2.75047262]
[1732333981549,0.8346106,3330.6,3330.0,0.06090498]
[1732333981788,0.8346106,3330.6,3329.3,2.75047262]
[1732333982159,0.8346106,3330.6,3329.4,0.06093029]
[1732333983497,0.8346106,3330.6,3329.0,0.02]
[1732333983697,0.8346106,3330.6,3329.5,0.06095541]
[1732333983867,0.8346106,3330.6,3329.3,0.01]
[1732333984056,0.8346106,3330.6,3329.6,0.06094996]
[1732333984264,0.8346106,3330.6,3329.4,0.06096086]
[1732333984491,0.8346106,3330.6,3329.7,0.06092791]
[1732333984760,0.8346106,3330.6,3329.4,0.01]
[1732333985101,0.8346106,3330.6,3329.5,0.06093881]
[1732333986156,0.8346106,3330.6,3329.6,0.02]
[1732333986569,0.8346106,3330.6,3329.7,0.06093148]
[1732333990972,0.8346106,3330.6,3329.2,0.02]
[1732333991172,0.8346106,3330.6,3329.8,0.06086513]
[1732333991357,0.8346106,3330.6,3329.2,0.02]
[1732333991562,0.8346106,3330.6,3329.2,0.37222726]
[1732333991795,0.8346106,3330.6,3329.3,0.06087946]
[1732333993399,0.8346106,3330.6,3329.6,0.01]
[1732333993698,0.8346106,3330.6,3329.7,0.06089438]
[1732333994104,0.8346106,3330.6,3329.3,0.01]